bitfinex-derivatives/quotes_BNBF0:USTF0_20250523
["timestamp","ask_amount","ask_price","bid_price","bid_amount"]
[1748043718852,1.09329783,654.94,653.83,2.25887538]
[1748043719054,0.97657914,655.02,653.83,2.25887538]
[1748043719254,1.09249324,655.01,653.83,2.25887538]
[1748043719454,0.97657914,654.94,653.64,2.25887538]
[1748043719651,0.97657914,654.94,653.65,0.30597414]
[1748043720552,0.30537614,654.93,653.65,0.30597414]
[1748043721458,0.97657914,654.92,653.65,0.30597414]
[1748043721958,0.30538547,654.91,653.65,0.30597414]
[1748043723461,0.97657914,654.9,653.65,0.30597414]
[1748043723960,0.30539479,654.89,653.65,0.30597414]
[1748043724862,0.97657914,654.88,653.65,0.30597414]
[1748043726664,0.97657914,654.87,653.65,0.30597414]
[1748043727963,0.97657914,654.86,653.65,0.30597414]
[1748043729364,0.97657914,654.85,653.65,0.30597414]
[1748043730663,0.30539479,654.89,653.65,0.30597414]
[1748043732277,0.99631568,654.88,653.65,0.30597414]
[1748043733678,0.99631568,654.87,653.65,0.30597414]
[1748043735578,0.99631568,654.86,653.65,0.30597414]
[1748043737471,0.99631568,654.85,653.65,0.30597414]
[1748043738779,0.99631568,654.84,653.65,0.30597414]
[1748043740480,0.30539479,654.89,653.65,0.30597414]
[1748043749291,1.04017488,654.88,653.65,0.30597414]
[1748043750689,0.30539479,654.89,653.65,0.30597414]
[1748043754298,1.04037275,654.88,653.65,0.30597414]
[1748043756196,1.04037275,654.87,653.65,0.30597414]
[1748043758505,1.04037275,654.86,653.65,0.30597414]
[1748043760206,0.30539479,654.89,653.65,0.30597414]
[1748043760607,1.11581188,655.13,653.65,0.30597414]
[1748043763908,1.11581188,655.44,653.65,0.30597414]
[1748043764102,1.40407702,655.43,653.65,0.30597414]
[1748043764302,1.40408168,655.42,653.65,0.30597414]
[1748043764502,1.40408633,655.41,653.65,0.30597414]
[1748043764712,0.30515715,655.4,653.65,0.30597414]
[1748043765011,1.09863784,655.39,653.65,0.30597414]
[1748043765218,0.30516646,655.38,653.65,0.30597414]
[1748043765402,1.09834032,655.37,653.65,0.30597414]
[1748043765709,0.30517578,655.36,653.65,0.30597414]
[1748043766209,1.09814512,655.35,653.65,0.30597414]
[1748043766410,0.30518509,655.34,653.65,0.30597414]
[1748043767708,1.03655608,655.33,653.65,0.30597414]
[1748043767911,0.3051944,655.32,653.65,0.30597414]
[1748043769311,1.03655608,655.31,653.65,0.30597414]
[1748043769508,1.34175514,655.31,653.65,0.30597414]
[1748043770810,1.03655608,655.3,653.65,0.30597414]
[1748043772615,1.03655608,655.29,653.65,0.30597414]
[1748043774910,1.03655608,655.28,653.65,0.30597414]
[1748043775116,1.09668797,655.27,653.65,0.30597414]
[1748043775319,1.09668797,655.26,653.65,0.30597414]
[1748043775613,1.57644716,655.25,653.65,0.30597414]
[1748043775819,1.57644716,655.24,653.65,0.30597414]
[1748043776119,1.57644716,655.23,653.65,0.30597414]
[1748043776313,1.57525633,655.22,653.65,0.30597414]
[1748043776517,1.57525633,655.21,653.65,0.30597414]
[1748043776719,1.57525633,655.2,653.65,0.30597414]
[1748043776920,1.57525633,655.19,653.65,0.30597414]
[1748043777217,1.57525633,655.18,653.65,0.30597414]
[1748043777416,1.57525633,655.17,653.65,0.30597414]
[1748043777612,1.57525633,655.16,653.65,0.30597414]
[1748043777920,0.30519906,655.31,653.65,0.30597414]
[1748043777921,1.11581188,654.77,653.65,0.30597414]
[1748043778120,1.09494626,654.76,653.65,0.30597414]
[1748043778317,1.11581188,654.77,653.65,0.30597414]
[1748043778513,1.09467542,654.76,653.65,0.30597414]
[1748043778719,1.09466358,654.75,653.65,0.30597414]
[1748043779014,1.11581188,654.77,652.99,3.6593454]
[1748043779220,1.40013613,654.76,653.01,0.30627402]
[1748043779414,0.30546009,654.75,653.01,0.30627402]
[1748043779818,1.03655608,654.74,653.01,0.30627402]
[1748043780026,0.30546943,654.73,653.01,0.30627402]
[1748043782130,1.03655608,654.72,653.01,0.30627402]
[1748043782630,1.34203017,654.72,653.01,0.30627402]
[1748043783630,0.30547876,654.71,653.01,0.30627402]
[1748043783833,1.03655608,654.7,653.01,0.30627402]
[1748043784029,1.3420395,654.7,653.01,0.30627402]
[1748043784533,0.30548809,654.69,653.01,0.30627402]
[1748043785430,1.03655608,654.68,653.01,0.30627402]
[1748043786431,1.34204883,654.68,653.01,0.30627402]
[1748043787031,1.03655608,654.67,653.01,0.30627402]
[1748043789237,0.30549275,654.68,653.01,0.30627402]
[1748043789238,1.03655608,654.66,653.01,0.30627402]
[1748043790438,1.08908028,654.65,653.01,0.30627402]
[1748043790638,1.08908028,654.64,653.01,0.30627402]
[1748043790836,1.08908028,654.63,653.01,0.30627402]
[1748043791131,1.08908028,654.62,653.01,0.30627402]
[1748043791338,1.08894896,654.61,653.01,0.30627402]
[1748043791539,1.08894896,654.6,653.01,0.30627402]
[1748043791741,1.03655608,654.65,653.01,0.30627402]
[1748043791941,1.08852406,654.64,653.01,0.30627402]
[1748043792136,1.08852406,654.63,653.01,0.30627402]
[1748043792341,1.08852406,654.62,653.01,0.30627402]
[1748043792543,1.08852406,654.61,653.01,0.30627402]
[1748043792743,1.08852406,654.6,653.01,0.30627402]
[1748043792945,1.03655608,654.63,653.01,0.30627402]
[1748043793145,1.08826215,654.62,653.01,0.30627402]
[1748043793342,1.0882797,654.61,653.01,0.30627402]
[1748043793544,1.03655608,654.63,653.01,0.30627402]
[1748043793744,1.08797608,654.62,653.01,0.30627402]
[1748043794647,1.03655608,654.61,653.01,0.30627402]
[1748043795047,1.08758478,654.6,653.01,0.30627402]
[1748043795246,1.08743706,654.59,653.01,0.30627402]
[1748043795448,1.03655608,654.61,653.01,0.30627402]
[1748043795647,1.08711997,654.6,653.01,0.30627402]
[1748043795847,1.03655608,654.61,653.01,0.30627402]
[1748043796148,1.08714446,654.6,653.01,0.30627402]
[1748043796349,1.03655608,654.61,653.01,0.30627402]
[1748043796750,2.15236796,654.6,653.01,0.30627402]
[1748043797650,0.30553476,654.59,653.01,0.30627402]
[1748043798051,1.03655608,654.58,653.01,0.30627402]
[1748043798347,0.30554409,654.57,653.01,0.30627402]
[1748043799749,1.03655608,654.56,653.01,0.30627402]
[1748043799954,0.30555343,654.55,653.01,0.30627402]
[1748043801854,1.03655608,654.54,653.01,0.30627402]
[1748043802054,0.30556277,654.53,653.01,0.30627402]
[1748043803457,1.03655608,654.52,653.01,0.30627402]
[1748043803657,0.3055721,654.51,653.01,0.30627402]
[1748043805359,1.03655608,654.5,653.01,0.30627402]
[1748043805560,0.30558144,654.49,653.01,0.30627402]
[1748043807362,1.03655608,654.48,653.01,0.30627402]
[1748043807561,0.30559078,654.47,653.01,0.30627402]
[1748043809062,1.03655608,654.46,653.01,0.30627402]
[1748043809265,0.30560012,654.45,653.01,0.30627402]
[1748043810864,1.03655608,654.44,653.01,0.30627402]
[1748043811159,0.30560946,654.43,653.01,0.30627402]
[1748043812458,1.03655608,654.42,653.01,0.30627402]
[1748043814462,0.30560946,654.43,653.01,0.30627402]
[1748043822670,1.01800259,654.42,653.01,0.30627402]
[1748043824669,1.01800259,654.41,653.01,0.30627402]
[1748043826178,1.01800259,654.4,653.01,0.30627402]
[1748043827380,1.32362606,654.4,653.01,0.30627402]
[1748043828380,1.01800259,654.39,653.01,0.30627402]
[1748043829182,1.01800259,654.38,653.01,0.30627402]
[1748043830482,1.3236354,654.38,653.01,0.30627402]
[1748043831382,0.30563748,654.37,653.01,0.30627402]
[1748043831779,1.32364007,654.37,653.03,2.25603124]
[1748043833085,1.01800259,654.36,653.03,2.25603124]
[1748043833285,1.01800259,654.36,653.03,2.56229588]
[1748043833785,1.01800259,654.36,653.04,0.30625995]
[1748043835484,1.01800259,654.35,653.27,2.25603124]
[1748043836091,1.01800259,654.34,653.27,2.25603124]
[1748043838088,1.01800259,654.33,653.23,2.25603124]
[1748043839589,0.30563748,654.37,653.23,2.25603124]
[1748043840084,1.11581188,654.63,653.23,2.25603124]
[1748043841690,1.01721481,654.62,653.66,2.25603124]
[1748043843191,1.01721481,654.61,653.66,2.25603124]
[1748043844794,1.01721481,654.6,653.66,2.25603124]
[1748043844996,1.01721481,654.6,653.77,2.25603124]
[1748043846695,1.01721481,654.59,653.77,2.25603124]
[1748043848792,1.01721481,654.58,653.51,2.25603124]
[1748043849898,1.01721481,654.57,653.51,2.25603124]
[1748043851301,1.01721481,654.56,653.48,2.25603124]
[1748043852798,1.01721481,654.55,653.48,2.25603124]
[1748043855000,1.11581188,654.89,653.83,2.25603124]
[1748043855201,1.09803412,654.88,653.83,2.25603124]
[1748043855402,1.11581188,654.89,653.83,2.25603124]
[1748043856503,1.0128726,654.88,653.83,2.25603124]
[1748043857599,1.0128726,654.87,654.0,2.25603124]
[1748043859005,1.0128726,654.86,654.0,2.25603124]
[1748043861009,1.11581188,655.24,653.99,2.25603124]
[1748043861603,0.30523632,655.23,653.99,2.25603124]
[1748043862408,1.0097938,655.22,653.99,2.25603124]
[1748043862602,0.30524564,655.21,653.99,2.25603124]
[1748043863813,1.0097938,655.2,653.97,2.25603124]
[1748043864011,0.30525496,655.19,653.97,2.25603124]
[1748043865611,1.0097938,655.18,653.97,2.25603124]
[1748043867613,1.0097938,655.17,653.9,2.25603124]
[1748043869312,1.0097938,655.16,653.9,2.25603124]
[1748043871312,1.0097938,655.15,653.83,2.25603124]
[1748043871514,1.0097938,655.15,653.84,0.30588523]
[1748043872116,1.09022482,655.14,653.84,0.30588523]
[1748043872313,1.09022482,655.13,653.84,0.30588523]
[1748043872514,1.0097938,655.12,653.84,0.30588523]
[1748043874110,0.30525496,655.19,653.84,0.30588523]
[1748043874111,1.0097938,655.11,653.84,0.30588523]
[1748043875615,1.0097938,655.1,653.84,0.30588523]
[1748043876819,1.0097938,655.09,653.84,0.30588523]
[1748043877616,1.31509536,655.09,653.84,0.30588523]
[1748043878116,1.0097938,655.08,653.84,0.30588523]
[1748043878517,0.30531088,655.07,653.84,0.30588523]
[1748043880017,1.0097938,655.06,653.84,0.30588523]
[1748043881218,0.3053202,655.05,653.84,0.30588523]
[1748043881618,1.0097938,655.04,653.84,0.30588523]
[1748043881821,0.30532952,655.03,653.84,0.30588523]
[1748043882920,1.0097938,655.02,653.84,0.30588523]
[1748043883315,0.30533884,655.01,653.84,0.30588523]
[1748043884521,1.0097938,655.0,653.84,0.30588523]
[1748043886422,0.30533884,655.01,653.84,0.30588523]
[1748043894926,1.11581188,655.64,653.84,0.30588523]
[1748043895128,0.30505475,655.62,653.84,0.30588523]
[1748043895425,1.09121649,655.61,653.84,0.30588523]
[1748043895626,0.30506871,655.59,653.84,0.30588523]
[1748043895827,1.09121649,655.58,653.84,0.30588523]
[1748043896126,0.30507802,655.57,653.84,0.30588523]
[1748043896325,1.09121649,655.56,653.84,0.30588523]
[1748043896531,1.09121649,655.56,654.12,2.25603124]
[1748043897028,0.30508733,655.55,654.12,2.25603124]
[1748043897227,1.09121649,655.54,654.12,2.25603124]
[1748043897422,0.30509663,655.53,654.12,2.25603124]
[1748043898029,0.97941444,655.52,654.12,2.25603124]
[1748043898221,0.30510594,655.51,654.12,2.25603124]
[1748043900030,0.97941444,655.5,654.2,2.25603124]
[1748043900223,0.30511525,655.49,654.2,2.25603124]
[1748043900933,0.97941444,655.48,654.2,2.25603124]
[1748043901127,0.30512456,655.47,654.2,2.25603124]
[1748043902835,0.97941444,655.46,654.23,2.25603124]
[1748043903034,0.30513387,655.45,654.23,2.25603124]
[1748043905238,0.30513387,655.45,654.24,0.30569821]
[1748043905739,0.30513387,655.45,654.3,2.25603124]
[1748043905938,0.30513387,655.45,654.3,2.56170142]
[1748043908738,0.30513387,655.45,654.3,0.30567018]
[1748043908739,0.98220858,655.44,654.3,0.30567018]
[1748043910240,0.30513387,655.45,654.3,0.30567018]
[1748043912346,0.30513387,655.45,654.33,2.25603124]
[1748043913447,0.98414774,655.44,654.33,2.25603124]
[1748043913647,1.0969284,655.43,654.33,2.25603124]
[1748043913947,1.0969284,655.42,654.33,2.25603124]
[1748043914148,1.0969284,655.41,654.33,2.25603124]
[1748043914448,1.09683291,655.4,654.33,2.25603124]
[1748043914646,1.09683291,655.39,654.33,2.25603124]
[1748043914846,1.09683291,655.38,654.33,2.25603124]
[1748043915042,1.09683291,655.37,654.33,2.25603124]
[1748043915248,1.0971145,655.36,654.33,2.25603124]
[1748043915449,0.98414774,655.37,654.3,0.30567018]
[1748043915749,1.09695847,655.36,654.3,0.30567018]
[1748043915950,0.98414774,655.37,654.3,0.30567018]
[1748043916148,1.09671389,655.36,654.3,0.30567018]
[1748043916370,0.98414774,655.37,654.3,0.30567018]
[1748043916849,0.98414774,655.36,654.3,0.30567018]
[1748043917247,1.09690167,655.35,654.3,0.30567018]
[1748043917447,1.09690167,655.34,654.3,0.30567018]
[1748043917647,1.09690167,655.33,654.3,0.30567018]
[1748043917849,1.09690167,655.32,654.3,0.30567018]
[1748043918049,1.09690167,655.31,654.3,0.30567018]
[1748043918249,1.09690167,655.3,654.3,0.30567018]
[1748043918548,0.98414774,655.36,654.3,0.30567018]
[1748043918750,0.98414774,655.3,654.3,0.30567018]
[1748043919250,1.09745898,655.29,654.3,0.30567018]
[1748043919549,1.09758883,655.28,654.3,0.30567018]
[1748043919749,0.98414774,655.3,654.3,0.30567018]
[1748043919949,1.09762975,655.29,654.3,0.30567018]
[1748043920148,1.09762975,655.28,654.3,0.30567018]
[1748043920349,1.09762975,655.27,654.3,0.30567018]
[1748043920649,1.09762975,655.26,654.13,2.25603124]
[1748043920848,0.98414774,655.28,654.13,2.25603124]
[1748043921044,1.0976078,655.27,654.13,2.25603124]
[1748043921246,1.0976078,655.26,654.13,2.25603124]
[1748043921442,0.98414774,655.28,654.13,2.25603124]
[1748043921646,1.40281933,655.27,654.13,2.25603124]
[1748043921845,1.09760164,655.26,654.13,2.25603124]
[1748043922049,1.40282865,655.25,654.13,2.25603124]
[1748043922345,1.40266095,655.24,654.13,2.25603124]
[1748043922551,1.09742928,655.23,654.13,2.25603124]
[1748043922755,0.30524098,655.22,654.13,2.25603124]
[1748043923052,0.30524098,655.22,654.04,2.25603124]
[1748043924253,0.98414774,655.21,654.04,2.25603124]
[1748043924447,0.3052503,655.2,654.04,2.25603124]
[1748043925753,0.98414774,655.19,654.12,2.25603124]
[1748043926653,0.98414774,655.18,654.12,2.25603124]
[1748043929355,0.98414774,655.17,654.12,2.25603124]
[1748043929557,0.98414774,655.17,653.95,2.25603124]
[1748043930352,0.98414774,655.16,653.95,2.25603124]
[1748043931559,0.3052736,655.15,653.95,2.25603124]
[1748043931861,1.28942134,655.15,653.93,2.25603124]
[1748043932053,1.09709436,655.14,653.93,2.25603124]
[1748043932255,1.09709436,655.13,653.93,2.25603124]
[1748043932460,1.09709436,655.12,653.93,2.25603124]
[1748043932660,1.09709436,655.11,653.93,2.25603124]
[1748043932861,1.09709436,655.1,653.93,2.25603124]
[1748043933059,1.09709436,655.09,653.93,2.25603124]
[1748043933256,1.09709436,655.08,653.93,2.25603124]
[1748043933460,1.09709436,655.07,653.93,2.25603124]
[1748043933661,0.98414774,655.09,653.93,2.25603124]
[1748043933863,1.09674537,655.08,653.93,2.25603124]
[1748043934062,1.09674537,655.07,653.93,2.25603124]
[1748043934363,1.09665125,655.06,653.93,2.25603124]
[1748043934564,0.98414774,655.09,653.93,2.25603124]
[1748043934762,1.09660311,655.08,653.93,2.25603124]
[1748043935058,1.09660311,655.07,653.93,2.25603124]
[1748043935262,1.40191865,655.06,653.93,2.25603124]
[1748043935563,0.3053202,655.05,653.93,2.25603124]
[1748043935857,0.3053202,655.05,653.67,2.25603124]
[1748043937063,1.09608549,655.04,653.67,2.25603124]
[1748043937263,0.30532952,655.03,653.67,2.25603124]
[1748043937463,1.28947726,655.03,653.67,2.25603124]
[1748043939160,1.28947726,655.03,653.8,2.25603124]
[1748043939365,0.98414774,655.02,653.8,2.25603124]
[1748043939569,0.30533884,655.01,653.8,2.25603124]
[1748043940166,0.98414774,655.0,653.8,2.25603124]
[1748043940365,0.30534817,654.99,653.8,2.25603124]
[1748043941467,0.98414774,654.98,653.64,2.25603124]
[1748043941767,0.30535749,654.97,653.64,2.25603124]
[1748043943163,0.30535749,654.97,653.65,0.30597414]
[1748043944770,0.30535749,654.97,654.25,1.51276884]
[1748043946073,1.11581188,655.46,654.25,1.51276884]
[1748043946269,1.40189903,655.45,654.25,1.51276884]
[1748043946469,1.40190369,655.44,654.25,1.51276884]
[1748043946672,1.40190834,655.43,654.25,1.51276884]
[1748043946871,1.09676516,655.42,654.25,1.51276884]
[1748043947074,0.30515249,655.41,654.25,1.51276884]
[1748043947270,1.09676516,655.4,654.25,1.51276884]
[1748043947573,0.30516181,655.39,654.25,1.51276884]
[1748043947772,1.09676516,655.38,654.25,1.51276884]
[1748043947967,0.30517112,655.37,654.25,1.51276884]
[1748043948167,1.09676516,655.36,654.25,1.51276884]
[1748043948369,0.30518043,655.35,654.25,1.51276884]
[1748043948573,1.09676516,655.34,654.24,1.51276884]
[1748043948770,0.30518975,655.33,654.24,1.51276884]
[1748043951377,0.30518975,655.33,654.37,1.51276884]
[1748043952576,1.09667651,655.32,654.37,1.51276884]
[1748043952776,1.09667651,655.31,654.37,1.51276884]
[1748043952973,1.09667651,655.3,654.37,1.51276884]
[1748043953170,1.09667651,655.29,654.37,1.51276884]
[1748043953370,1.09641438,655.28,654.37,1.51276884]
[1748043953572,1.09641438,655.27,654.37,1.51276884]
[1748043953773,1.09641438,655.26,654.37,1.51276884]
[1748043953974,1.40164139,655.25,654.37,1.51276884]
[1748043954174,1.09641438,655.24,654.37,1.51276884]
[1748043954374,1.4016507,655.23,654.37,1.51276884]
[1748043954577,1.09641438,655.22,654.17,1.51276884]
[1748043954776,1.09641438,655.21,654.17,1.51276884]
[1748043954976,1.09641438,655.2,654.17,1.51276884]
[1748043955173,1.09641438,655.19,654.17,1.51276884]
[1748043955378,1.0962814,655.18,654.17,1.51276884]
[1748043955577,1.0962814,655.17,654.17,1.51276884]
[1748043955772,0.30523632,655.23,654.17,1.51276884]
[1748043955977,1.09631825,655.22,654.17,1.51276884]
[1748043956176,1.09631825,655.21,654.17,1.51276884]
[1748043956381,1.09631825,655.2,654.17,1.51276884]
[1748043956584,1.09631825,655.19,654.17,1.51276884]
[1748043956882,1.09631825,655.18,654.17,1.51276884]
[1748043957083,0.30526428,655.17,654.17,1.51276884]
[1748043957284,0.30526428,655.17,654.12,1.51276884]
[1748043959691,0.30526428,655.17,654.13,1.51276884]
[1748043962189,0.30526428,655.17,654.28,1.51276884]
[1748043965491,0.30526428,655.17,654.36,1.51276884]
[1748043965791,1.11581188,655.37,654.36,1.51276884]
[1748043965987,1.09726752,655.36,654.36,1.51276884]
[1748043966191,1.09726752,655.35,654.36,1.51276884]
[1748043966393,1.09726752,655.34,654.36,1.51276884]
[1748043966589,1.09726752,655.33,654.36,1.51276884]
[1748043966893,1.11581188,655.37,654.36,1.51276884]
[1748043967089,1.5772089,655.36,654.36,1.51276884]
[1748043967290,1.09750524,655.35,654.36,1.51276884]
[1748043967491,1.09750524,655.34,654.36,1.51276884]
[1748043967689,1.09781963,655.33,654.36,1.51276884]
[1748043967892,1.09781963,655.32,654.36,1.51276884]
[1748043968090,1.09781963,655.31,654.36,1.51276884]
[1748043968393,1.09781963,655.3,654.36,1.51276884]
[1748043968597,1.11581188,655.41,654.19,1.51276884]
[1748043968795,1.57815783,655.4,654.19,1.51276884]
[1748043969093,1.09810364,655.39,654.19,1.51276884]
[1748043969292,1.09810364,655.38,654.19,1.51276884]
[1748043969490,1.09810364,655.37,654.19,1.51276884]
[1748043969790,1.09810364,655.36,654.19,1.51276884]
[1748043969991,1.09810364,655.35,654.19,1.51276884]
[1748043970195,1.09810364,655.34,654.19,1.51276884]
[1748043970396,1.09810364,655.33,654.19,1.51276884]
[1748043970593,1.57862969,655.32,654.19,1.51276884]
[1748043970791,1.09810364,655.31,654.19,1.51276884]
[1748043970988,1.11581188,655.41,654.19,1.51276884]
[1748043970989,1.57862251,655.3,654.19,1.51276884]
[1748043971196,1.57862251,655.29,654.21,1.51276884]
[1748043971395,1.57862251,655.28,654.21,1.51276884]
[1748043971695,1.57862251,655.27,654.21,1.51276884]
[1748043971888,1.57970628,655.26,654.21,1.51276884]
[1748043972091,1.57970628,655.25,654.21,1.51276884]
[1748043972290,1.57970628,655.24,654.21,1.51276884]
[1748043972490,1.57990963,655.23,654.21,1.51276884]
[1748043972693,1.57990963,655.22,654.21,1.51276884]
[1748043972890,1.57990963,655.21,654.21,1.51276884]
[1748043973091,1.57990963,655.2,654.21,1.51276884]
[1748043973294,1.57990963,655.19,654.21,1.51276884]
[1748043973490,1.57990963,655.18,654.21,1.51276884]
[1748043973691,1.57990963,655.17,654.21,1.51276884]
[1748043973890,1.57990963,655.16,654.21,1.51276884]
[1748043974094,1.11581188,655.12,653.84,2.25603124]
[1748043974296,1.57990963,655.11,653.84,2.25603124]
[1748043974495,1.57990963,655.1,653.84,2.25603124]
[1748043974694,1.57990963,655.09,653.84,2.25603124]
[1748043974896,1.57990963,655.08,653.84,2.25603124]
[1748043975097,1.57990963,655.07,653.84,2.25603124]
[1748043975395,1.57990963,655.06,653.84,2.25603124]
[1748043975598,1.57990963,655.05,653.84,2.25603124]
[1748043975796,1.57990963,655.04,653.84,2.25603124]
[1748043975998,1.57918192,655.03,653.84,2.25603124]
[1748043976198,1.57918192,655.02,653.84,2.25603124]
[1748043976398,1.09879036,655.01,653.84,2.25603124]
[1748043976599,1.09879036,655.0,653.84,2.25603124]
[1748043976798,1.09879036,654.99,653.76,2.25603124]
[1748043976995,1.09879036,654.98,653.76,2.25603124]
[1748043977196,1.09879036,654.97,653.76,2.25603124]
[1748043977396,1.09879036,654.96,653.76,2.25603124]
[1748043977699,0.99222838,654.95,653.76,2.25603124]
[1748043978196,1.09780079,654.94,653.76,2.25603124]
[1748043978392,0.99222838,654.95,653.76,2.25603124]
[1748043978693,1.0975748,654.94,653.76,2.25603124]
[1748043978895,1.09743852,654.93,653.76,2.25603124]
[1748043979097,1.09743852,654.92,653.76,2.25603124]
[1748043979297,1.09743852,654.91,653.76,2.25603124]
[1748043979498,0.99222838,654.91,653.59,2.25603124]
[1748043981200,0.99222838,654.9,653.59,2.25603124]
[1748043983101,0.99222838,654.89,653.79,2.25603124]
[1748043984701,0.99222838,654.88,653.79,2.25603124]
[1748043986700,0.99222838,654.87,653.8,2.25603124]
[1748043987201,1.09598487,654.86,653.8,2.25603124]
[1748043987500,1.09598487,654.85,653.8,2.25603124]
[1748043987695,1.09598487,654.84,653.8,2.25603124]
[1748043987899,1.09598487,654.83,653.8,2.25603124]
[1748043988200,2.08821325,654.82,653.8,2.25603124]
[1748043988502,1.57392845,654.81,653.8,2.25603124]
[1748043988801,1.09518709,654.8,653.8,2.25603124]
[1748043989100,1.57387711,654.79,653.8,2.25603124]
[1748043989294,1.09518709,654.78,653.8,2.25603124]
[1748043989494,1.09518709,654.77,653.8,2.25603124]
[1748043989998,1.11581188,654.77,653.45,2.25603124]
[1748043991302,0.99222838,654.76,653.45,2.25603124]
[1748043993405,0.99222838,654.75,653.48,2.25603124]
[1748043994498,1.09159358,654.74,653.48,2.25603124]
[1748043994698,1.09159358,654.73,653.48,2.25603124]
[1748043994903,0.99222838,654.73,653.48,2.25603124]
[1748043995107,1.09174905,654.72,653.48,2.25603124]
[1748043995403,0.99222838,654.73,653.48,2.25603124]
[1748043997204,0.99222838,654.72,653.38,2.25603124]
[1748043998402,0.99222838,654.71,653.38,2.25603124]
[1748043998606,0.99222838,654.71,653.39,0.30609589]
[1748043999810,0.99222838,654.7,653.41,2.25603124]
[1748044001210,0.99222838,654.69,653.41,2.25603124]
[1748044002210,0.99222838,654.69,653.41,2.56211777]
[1748044002506,0.99222838,654.69,653.42,0.30608184]
[1748044003011,0.99222838,654.68,653.42,0.30608184]
[1748044004309,0.99222838,654.67,653.42,0.30608184]
[1748044006012,0.99222838,654.66,653.42,0.30608184]
[1748044007020,0.30550675,654.65,653.42,0.30608184]
[1748044007521,0.99222838,654.64,653.42,0.30608184]
[1748044007822,0.30551609,654.63,653.42,0.30608184]
[1748044009722,0.99222838,654.62,653.42,0.30608184]
[1748044010023,0.30552542,654.61,653.42,0.30608184]
[1748044011622,0.99222838,654.6,653.42,0.30608184]
[1748044013526,0.30552542,654.61,653.42,0.30608184]
[1748044013527,0.99222838,654.59,653.42,0.30608184]
[1748044014928,0.99222838,654.6,653.42,0.30608184]
[1748044016827,0.99222838,654.59,653.42,0.30608184]
[1748044018528,0.30552542,654.61,653.42,0.30608184]
[1748044018529,0.99222838,654.58,653.42,0.30608184]
[1748044020526,0.99222838,654.57,653.42,0.30608184]
[1748044021931,0.99222838,654.56,653.42,0.30608184]
[1748044023232,0.99222838,654.55,653.42,0.30608184]
[1748044024029,0.3055581,654.54,653.42,0.30608184]
[1748044024533,0.99222838,654.53,653.42,0.30608184]
[1748044024729,0.30556743,654.52,653.42,0.30608184]
[1748044025933,0.99222838,654.51,653.42,0.30608184]
[1748044027339,0.99222838,654.5,653.42,0.30608184]
[1748044029339,0.99222838,654.49,653.42,0.30608184]
[1748044031742,0.30556743,654.52,653.57,2.25603124]
[1748044033643,0.30556743,654.52,653.87,2.25603124]
[1748044036742,0.30556743,654.52,653.85,2.25603124]
[1748044038951,1.11581188,654.94,653.85,2.25603124]
[1748044039148,1.88267423,654.93,653.85,2.25603124]
[1748044039351,1.88267889,654.92,653.85,2.25603124]
[1748044039546,1.88268356,654.91,653.85,2.25603124]
[1748044039749,1.88268822,654.9,653.85,2.25603124]
[1748044039950,1.88269288,654.89,653.85,2.25603124]
[1748044040145,1.88269755,654.88,653.85,2.25603124]
[1748044040347,1.88270221,654.87,653.85,2.25603124]
[1748044040653,1.11581188,654.67,653.66,2.25603124]
[1748044040845,1.09678105,654.66,653.66,2.25603124]
[1748044041049,1.09678105,654.65,653.66,2.25603124]
[1748044041249,1.09678105,654.64,653.66,2.25603124]
[1748044041454,1.09678105,654.63,653.66,2.25603124]
[1748044041653,1.09678105,654.62,653.66,2.25603124]
[1748044041853,2.09788961,654.61,653.66,2.25603124]
[1748044042052,1.40231114,654.6,653.66,2.25603124]
[1748044042354,1.40231581,654.59,653.66,2.25603124]
[1748044042553,0.30553942,654.58,653.66,2.25603124]
[1748044043453,1.00110856,654.57,653.59,2.25603124]
[1748044043751,2.40377238,654.57,653.59,2.25603124]
[1748044043952,1.09711973,654.56,653.59,2.25603124]
[1748044044153,1.30665265,654.57,653.59,2.25603124]
[1748044044354,1.09763133,654.56,653.59,2.25603124]
[1748044044554,1.09763133,654.55,653.59,2.25603124]
[1748044044757,1.30665265,654.57,653.59,2.25603124]
[1748044044952,1.09769387,654.56,653.59,2.25603124]
[1748044045153,2.09880243,654.55,653.59,2.25603124]
[1748044045353,1.09769387,654.54,653.59,2.25603124]
[1748044046257,1.00110856,654.55,653.59,2.25603124]
[1748044046953,0.30554409,654.57,653.42,0.30608184]
[1748044046954,1.00110856,654.54,653.62,2.25603124]
[1748044048258,1.00110856,654.53,653.62,2.25603124]
[1748044050059,1.30667133,654.53,653.62,2.25603124]
[1748044050253,0.30556743,654.52,653.62,2.25603124]
[1748044050457,1.30667599,654.52,653.72,2.25603124]
[1748044051555,1.00110856,654.51,653.72,2.25603124]
[1748044051755,1.30668066,654.51,653.72,2.25603124]
[1748044053561,0.3055721,654.51,653.74,2.25603124]
[1748044056861,0.3055721,654.51,653.7,2.25603124]
[1748044058763,1.11581188,654.91,653.7,2.25603124]
[1748044059662,1.11581188,654.91,653.71,0.30594606]
[1748044060157,1.00740501,654.9,654.03,2.25603124]
[1748044061359,1.11581188,655.18,654.03,2.25603124]
[1748044061558,1.40155477,655.17,654.03,2.25603124]
[1748044061758,1.40155943,655.16,654.03,2.25603124]